[Event "1st Serbian League 2022"]
[Site "Vrnjacka Banja"]
[Date "2022.09.22"]
[Round "3.6"]
[White "Stankovic, Milos"]
[Black "Vratonjic, Slobo"]
[Result "1/2-1/2"]
[ECO "B48"]
[WhiteElo "2439"]
[BlackElo "2253"]
[Annotator "TA"]
[PlyCount "56"]
[EventDate "2022.09.20"]
[EventType "team-tourn"]
[EventCountry "SRB"]
[SourceTitle "playchess.com"]
[Source "ChessBase"]
[SourceQuality "1"]
[TimeControl "40/5400+30:1800+30"]

{[%evp 11,56,29,31,11,15,11,23,0,0,-18,66,62,67,48,104,40,37,42,49,40,35,46,74,60,66,61,143,28,8,15,89,0,0,0,0,0,0,0,0,0,0,0,0,-27,-29,-38,-34]} 1. e4 {[%emt 0:00:22]} c5 {[%emt 0:00:26]} 2. Nf3 {[%emt 0:00:33]} e6 {[%emt 0:00:21]} 3. d4 {[%emt 0:00:27]} cxd4 {[%emt 0:00:19]} 4. Nxd4 {[%emt 0:00:32]} Nc6 {[%emt 0:00:06]} 5. Nc3 {[%emt 0:00:31]} Qc7 {[%emt 0:00:33]} 6. Be3 {[%emt 0:00:31]} a6 {[%emt 0:03:30]} 7. g4 $1 {[%emt 0:00:30][%mdl 4] is currently scoring better than 7.Qd2. B48: Sicilian: Taimanov: 5 Nc3 Qc7 6 Be3 a6 without Be2.} b5 {[%emt 0:03:11][%cal Bb7b5,Bb5b4][%mdl 32]} 8. Nxc6 {[%emt 0:03:20]} Qxc6 {[%emt 0:09:54]} 9. Qd2 {[%emt 0:03:31] White has an edge.} b4 {[%emt 0:12:37]} 10. Ne2 {[%emt 0:02:25]} Nf6 {[%emt 0:11:52]} (10... Qxe4 $11 11. Rg1 Qb7) 11. f3 $14 {[%emt 0:03:27]} h6 {[%emt 0:04:47]} 12. O-O-O {[%emt 0:03:18] [#]} Be7 $146 {[%emt 0:07:21]} (12... Bb7 $14) ({Predecessor:} 12... Bb7 13. Nd4 Qc7 14. Bd3 e5 15. Nb3 d5 16. exd5 Nxd5 17. Be4 O-O-O 18. Qe2 Be7 19. Bxd5 Rxd5 20. Rxd5 Bxd5 21. Qxa6+ {1-0 (49) Lorenzo de la Riva,L (2429)-Pogorelov,R (2334) Barcelona 2022}) 13. Nf4 {[%emt 0:07:06]} ({Better is} 13. Kb1 $16) 13... Bb7 {[%emt 0:01:39]} 14. Bd3 {[%emt 0:12:48]} e5 {[%emt 0:10:18]} 15. Nh5 {[%emt 0:04:01]} Nxh5 {[%emt 0:01:11]} 16. gxh5 {[%emt 0:00:28][%cal Od3c4]} d5 {[%emt 0:02:18] Prevents Bc4.} 17. Qg2 {[%emt 0:00:12]} d4 {[%emt 0:03:57]} 18. Bd2 {[%emt 0:00:56]} ({Don't blunder} 18. Qxg7 $2 Bf6 19. Qg1 dxe3 $19) 18... a5 {[%emt 0:04:54]} (18... Bf6 $14) 19. Kb1 {[%emt 0:12:22]} ({Only move:} 19. Qxg7 $16 Bf6 20. Qg2) 19... Bf6 $11 {[%emt 0:03:08]} 20. f4 {[%emt 0:00:52]} Ba6 {[%emt 0:00:29]} (20... O-O $11 {keeps the balance.}) 21. Qg3 {[%emt 0:01:45]} (21. fxe5 $16 Bxe5 22. Rdf1) 21... Qc7 {[%emt 0:03:55]} 22. Rhg1 {[%emt 0:01:40]} O-O {[%emt 0:05:17]} 23. Rdf1 {[%emt 0:03:41] [#] Hoping for fxe5.} Rfc8 {[%emt 0:02:41]} 24. fxe5 {[%emt 0:08:52]} Bxe5 {[%emt 0:00:11]} 25. Bf4 {[%emt 0:00:20]} f6 {[%emt 0:00:11]} 26. Bxe5 {[%emt 0:01:44]} fxe5 {[%emt 0:00:02]} 27. Qg6 {[%emt 0:01:32]} Bxd3 {[%emt 0:00:42]} 28. cxd3 {[%emt 0:00:08] [#] Threatens to win with Qxh6. Really sharp!} Kh8 {[%emt 0:03:17] Weighted Error Value: White=0.21 (precise) /Black=0.20 (precise)} 1/2-1/2

[Event "1st Serbian League 2022"]
[Site "Vrnjacka Banja"]
[Date "2022.09.22"]
[Round "3.7"]
[White "Ter-Sahakyan, Samvel"]
[Black "Yilmazyerli, Mert"]
[Result "1/2-1/2"]
[ECO "B31"]
[WhiteElo "2630"]
[BlackElo "2533"]
[Annotator "TA"]
[PlyCount "92"]
[EventDate "2022.09.20"]
[EventType "team-tourn"]
[EventCountry "SRB"]
[SourceTitle "playchess.com"]
[Source "ChessBase"]
[SourceQuality "1"]
[TimeControl "40/5400+30:1800+30"]

{[%evp 15,92,2,0,10,0,0,0,0,0,0,3,4,29,18,55,20,9,17,16,10,19,10,12,31,31,25,34,35,43,43,61,57,56,0,54,0,75,52,53,45,48,47,52,39,56,60,63,45,59,39,50,38,33,0,0,0,0,0,57,54,56,-14,0,0,0,0,0,0,0,0,0,-22,-21,-29,-8,-8,-8,-8,-10]} 1. e4 {[%emt 0:00:05]} c5 {[%emt 0:02:32]} 2. Nf3 {[%emt 0:00:12]} Nc6 {[%emt 0:00:05]} 3. Bb5 {[%emt 0:01:24]} g6 {[%emt 0:01:05]} 4. O-O {[%emt 0:01:46]} Bg7 {[%emt 0:00:05]} 5. c3 {[%emt 0:01:24]} Nf6 {[%emt 0:00:13]} 6. Re1 {[%emt 0:01:40]} O-O {[%emt 0:00:08]} 7. d4 {[%emt 0:01:04]} d5 $1 {[%emt 0:00:42][%mdl 4] outshines the older 7...cxd4.} 8. e5 {[%emt 0:00:30]} Ne4 {[%emt 0:00:08]} 9. Be3 {[%emt 0:04:15] B31: Sicilian: 2...Nc6 3 Bb5 g6.} cxd4 {[%emt 0:05:34]} 10. cxd4 {[%emt 0:00:09]} Qb6 {[%emt 0:00:05]} 11. Qe2 {[%emt 0:08:57]} Bd7 {[%emt 0:14:38][%cal Oc6e5]} 12. Ba4 {[%emt 0:00:15]} Rac8 {[%emt 0:01:51]} 13. Nc3 {[%emt 0:06:09] [#]} Be6 $146 {[%emt 0:18:13]} ({Predecessor:} 13... Nxc3 14. bxc3 Qd8 15. Bb3 Na5 16. Rac1 Nxb3 17. axb3 Qb6 18. Qa2 a5 19. Qa3 Rfe8 {0-1 (49) Caruana,F (2792)-Carlsen,M (2865) Wijk aan Zee 2022}) 14. Rac1 {[%emt 0:09:54]} Na5 {[%emt 0:07:59]} 15. Ng5 {[%emt 0:27:29]} (15. Nxe4 {seems wilder.} dxe4 16. d5 Qb4 17. dxe6 Rxc1 18. exf7+ Rxf7 19. Bxc1 exf3 20. Qe4) 15... Nxg5 {[%emt 0:04:22]} 16. Bxg5 {[%emt 0:00:04]} Rc7 {[%emt 0:05:48]} 17. Qb5 {[%emt 0:05:00]} Qxb5 {[%emt 0:16:32]} 18. Nxb5 {[%emt 0:02:43]} Rxc1 {[%emt 0:00:11]} 19. Rxc1 {[%emt 0:00:10]} Nc6 {[%emt 0:00:06]} 20. Be3 $36 {[%emt 0:02:39][%mdl 2048] White has good play.} Rc8 {[%emt 0:02:07] Inhibits Nc7.} 21. Rc5 {[%emt 0:13:00]} b6 {[%emt 0:01:35]} 22. Rc1 {[%emt 0:01:02]} Bf5 {[%emt 0:04:07]} 23. Bb3 {[%emt 0:03:39]} Be6 {[%emt 0:02:31]} 24. Ba4 {[%emt 0:03:36]} Bf5 {[%emt 0:00:09]} 25. Bb3 {[%emt 0:00:02]} Be6 {[%emt 0:00:06]} 26. Nc3 {[%emt 0:00:14] White is more active.} Nb4 {[%emt 0:01:52]} 27. Rd1 {[%emt 0:00:05]} Rd8 {[%emt 0:02:07]} 28. f4 {[%emt 0:03:18]} h5 {[%emt 0:01:50]} 29. h3 {[%emt 0:02:20]} Bh6 {[%emt 0:04:56]} 30. a3 {[%emt 0:00:39]} Nc6 {[%emt 0:00:02]} 31. Kf2 {[%emt 0:00:20]} Kg7 {[%emt 0:00:56]} 32. Kf3 {[%emt 0:00:38]} h4 {[%emt 0:01:26]} 33. Bf2 {[%emt 0:01:22]} g5 {[%emt 0:01:04]} 34. f5 {[%emt 0:00:12]} Bxf5 {[%emt 0:00:27]} 35. Bxd5 {[%emt 0:00:04]} Na5 {[%emt 0:01:48]} 36. Be4 {[%emt 0:01:23]} e6 {[%emt 0:00:16]} (36... Bd7 $11) 37. Bxf5 $14 {[%emt 0:00:34]} exf5 {[%emt 0:00:01]} 38. d5 {[%emt 0:00:32]} (38. Ke2 $14) 38... Nc4 {[%emt 0:00:25][%csl LRb2,LRe5]} 39. Bd4 {[%emt 0:00:08] [#] Hoping for b3.} Kg6 {[%emt 0:01:23]} 40. b3 {[%emt 0:00:58]} g4+ {[%emt 0:00:33]} 41. hxg4 {[%emt 0:10:45]} Nd2+ {[%emt 0:01:41]} 42. Ke2 {[%emt 0:06:57] Strongly threatening g5.} fxg4 {[%emt 0:02:17]} ({Don't play} 42... Nxb3 43. gxf5+ Kxf5 44. Rf1+ Kg6 45. Rf6+ Kg7 46. Kd3 $16) 43. d6 {[%emt 0:00:05]} Nxb3 {[%emt 0:05:12]} 44. Nd5 {[%emt 0:03:02]} Bg5 {[%emt 0:06:17]} (44... Kf5 $5 {[%cal Rb3d4]} 45. Bb2 Ke6 $11) 45. Be3 {[%emt 0:06:05]} Nc5 {[%emt 0:00:06]} 46. Rd4 {[%emt 0:02:58]} Kf5 {[%emt 0:17:59] Weighted Error Value: White=0.11 (very precise) /Black=0.08 (flawless)} 1/2-1/2

[Event "1st Serbian League 2022"]
[Site "Vrnjacka Banja"]
[Date "2022.09.22"]
[Round "3.8"]
[White "Gokerkan, Cem Kaan"]
[Black "Stojanovic, Mihajlo"]
[Result "1-0"]
[ECO "C13"]
[WhiteElo "2465"]
[BlackElo "2494"]
[Annotator "TA"]
[PlyCount "85"]
[EventDate "2022.09.20"]
[EventType "team-tourn"]
[EventCountry "SRB"]
[SourceTitle "playchess.com"]
[Source "ChessBase"]
[SourceQuality "1"]
[TimeControl "40/5400+30:1800+30"]

{[%evp 15,85,16,29,12,33,37,34,32,49,39,112,97,103,120,98,69,195,197,190,133,166,7,10,4,10,0,24,0,0,0,0,0,0,0,0,0,0,0,0,0,0,0,0,0,0,-36,0,0,81,74,85,96,90,23,216,53,166,170,165,162,1035,1004,1426,0,0,0,1412,1404,1372,1350,1360,1266]} 1. e4 {[%emt 0:05:34]} e6 {[%emt 0:00:04]} 2. d4 {[%emt 0:00:05]} d5 {[%emt 0:00:07]} 3. Nc3 {[%emt 0:00:05]} Nf6 {[%emt 0:00:21]} 4. Bg5 {[%emt 0:00:13]} dxe4 {[%emt 0:01:52]} 5. Nxe4 {[%emt 0:00:14]} Nbd7 {[%emt 0:05:31]} 6. Nf3 {[%emt 0:00:46]} h6 {[%emt 0:00:16]} 7. Bxf6 {[%emt 0:01:38]} Nxf6 {[%emt 0:00:08]} 8. Bd3 {[%emt 0:00:05]} c5 {[%emt 0:06:26]} 9. Qe2 {[%emt 0:07:02] C13: French: Classical System: 4 Bg5 Be7, Alekhine-Chatard Attack.} Qa5+ {[%emt 0:34:54]} 10. c3 {[%emt 0:07:11]} cxd4 {[%emt 0:10:00]} 11. Nxf6+ {[%emt 0:10:49] White is slightly better.} gxf6 {[%emt 0:00:04]} 12. Bb5+ {[%emt 0:00:05] [#]} Ke7 $146 {[%emt 0:00:16]} (12... Bd7 $14 13. Bxd7+ (13. Nxd4 Bxb5 14. Qxb5+ Qxb5 $11) 13... Kxd7) ({Predecessor:} 12... Bd7 13. Bxd7+ Kxd7 14. O-O-O Rd8 15. Qc4 Bd6 16. Rxd4 Ke7 17. Rhd1 Qc7 18. Qe2 Bc5 19. Rxd8 Rxd8 20. Rxd8 Qxd8 {½-½ (36) Alvir,A (2399)-Neubauer,M (2369) Frohnleiten 2000}) 13. Nxd4 $16 {[%emt 0:03:40]} a6 {[%emt 0:08:56]} 14. b4 {[%emt 0:13:32]} (14. Nf5+ Kd8 15. Qd3+ Kc7 16. Qg3+ Kb6 17. Qe3+ Kc7 18. Qg3+ (18. Qf4+ $2 e5 $19) 18... Kb6 19. Qe3+ Kc7 20. Qg3+ $15 (20. Qf4+ $2 e5 $19)) 14... Qb6 {[%emt 0:00:09]} 15. Ba4 {[%emt 0:02:11] aiming for Nf5+. White has more active pieces. The black rooks are badly placed.} (15. Nf5+ $6 Kd8 16. Qd3+ Kc7 17. Qg3+ Bd6 18. Nxd6 Qxd6 $11) 15... Bg7 {[%emt 0:01:25]} (15... Bd7 $1 $14 16. Bxd7 (16. Nf5+ Ke8 $14) 16... Kxd7) 16. Nf5+ $1 $18 {[%emt 0:02:13]} Kf8 {[%emt 0:01:04] [#]} 17. Rd1 $1 {[%emt 0:07:30]} Qc7 {[%emt 0:02:25] [#]} (17... Kg8 18. Nd6) 18. O-O $2 {[%emt 0:17:03]} b5 $11 {[%emt 0:00:08]} 19. Nxg7 {[%emt 0:03:48]} Kxg7 {[%emt 0:00:04]} 20. Bc2 {[%emt 0:00:44] Hoping for Qg4+.} f5 {[%emt 0:06:31] Prevents Qg4+.} 21. Rd3 {[%emt 0:01:25]} Bb7 {[%emt 0:00:20]} 22. Qh5 {[%emt 0:02:45]} Rad8 {[%emt 0:04:30]} 23. Rfd1 {[%emt 0:02:55][%cal Bf1d1,Bd1d3,Bd3g3][%mdl 32]} Rxd3 {[%emt 0:01:25]} 24. Rxd3 {[%emt 0:00:01]} Qe5 {[%emt 0:00:23][%cal Re5e1]} 25. Rg3+ {[%emt 0:02:21]} Kf8 {[%emt 0:00:05][%cal Re5e1]} 26. h3 {[%emt 0:02:10]} Qf6 {[%emt 0:10:20]} 27. Qd1 {[%emt 0:00:52]} Ke7 {[%emt 0:00:10] Prevents Qd6+.} 28. Qd2 {[%emt 0:01:43]} f4 {[%emt 0:03:10]} 29. Rd3 {[%emt 0:00:43] And now Rd7+ would win.} Bc6 {[%emt 0:00:03] Against Rd7+} 30. Rd6 {[%emt 0:02:52]} Rc8 {[%emt 0:00:49]} (30... Bd5 $5 {[%cal Re7d6]} 31. Rxa6 Rd8 32. Ra7+ Kf8 $11) 31. f3 {[%emt 0:02:34]} Kf8 {[%emt 0:02:58] [#]} (31... Bd5 $11 32. Rxa6 Rxc3) 32. Rd4 $1 $16 {[%emt 0:00:39]} e5 {[%emt 0:00:54]} 33. Rd6 {[%emt 0:00:00]} Qg5 {[%emt 0:00:13] [#]} 34. Qf2 {[%emt 0:01:24]} (34. Kf1 $1 $16) 34... Kg7 $2 {[%emt 0:00:50]} (34... Bb7 $11 {and Black stays safe.}) 35. h4 $2 {[%emt 0:00:25]} (35. Qa7 $18 {Rg6+ is the strong threat.} e4 36. Bb3 (36. fxe4 f3 $14) (36. Bxe4 Bxe4 37. Qd4+ Kg8 $11)) 35... Qe7 {[%emt 0:00:19]} (35... Qg3 $1 $14) 36. Qc5 $18 {[%emt 0:00:37][%cal Od6g6] Black must now prevent Rg6+!} Qxh4 {[%emt 0:00:34]} 37. Qxe5+ {[%emt 0:00:02]} ({Inferior is} 37. Rxc6 Qe1+ 38. Kh2 Qh4+ 39. Kg1 Qe1+ 40. Kh2 Qh4+ 41. Kg1 $11) 37... Kg8 $2 {[%emt 0:00:36]} (37... Kf8) 38. Bb3 {[%emt 0:00:46] White wants to mate with Rg6+.} ({Worse is} 38. Rxc6 Rxc6 39. Qe8+ Kg7 40. Qxc6 Qe1+ 41. Kh2 Qh4+ 42. Kg1 Qe1+ 43. Kh2 Qh4+ 44. Kg1 $11) 38... Kf8 {[%emt 0:00:38]} 39. Qh8+ $2 {[%emt 0:00:18]} (39. Rf6 $18 Be8 40. Rxf4 Qxf4 41. Qxf4) 39... Ke7 $11 {[%emt 0:00:03]} 40. Qe5+ $40 {[%emt 0:00:03][%mdl 8320] White has some attack.} (40. Qxc8 $11 Qe1+ 41. Kh2 Qg3+ 42. Kh1 Qh4+ 43. Kg1 Qe1+ 44. Kh2 Qg3+ 45. Kh1 Qh4+ 46. Kg1) 40... Kf8 $18 {[%emt 0:00:06]} 41. Rf6 {[%emt 0:07:48] White is clearly winning.} Be8 {[%emt 0:00:53]} 42. Rxf4 {[%emt 0:01:19]} Qg5 {[%emt 0:00:26]} 43. Qd6+ {[%emt 0:00:07] Weighted Error Value: White=0.44/Black=0.32} 1-0

[Event "1st Serbian League 2022"]
[Site "Vrnjacka Banja"]
[Date "2022.09.22"]
[Round "3.9"]
[White "Pezelj, Novak"]
[Black "Arsovic, Goran"]
[Result "1/2-1/2"]
[ECO "B50"]
[WhiteElo "2496"]
[BlackElo "2362"]
[Annotator "TA"]
[PlyCount "28"]
[EventDate "2022.09.20"]
[EventType "team-tourn"]
[EventCountry "SRB"]
[SourceTitle "playchess.com"]
[Source "ChessBase"]
[SourceQuality "1"]
[TimeControl "40/5400+30:1800+30"]

{[%evp 9,28,8,16,-16,-11,-6,-5,-14,-12,-12,-21,-20,-19,-42,0,-36,-32,-24,-16,-54,-28]} 1. e4 {[%emt 0:00:07]} c5 {[%emt 0:00:26]} 2. Nf3 {[%emt 0:00:28]} d6 {[%emt 0:00:24]} 3. Nc3 {[%emt 0:00:33]} Nf6 {[%emt 0:01:41]} 4. e5 {[%emt 0:01:05]} dxe5 {[%emt 0:00:23]} 5. Nxe5 {[%emt 0:00:20]} Bd7 {[%emt 0:01:42]} 6. Bc4 {[%emt 0:13:20][%csl Ge5][%cal Rc4f7] [#] B50: Sicilian: 2...d6, Miscellaneous.} e6 {[%emt 0:00:19]} 7. O-O {[%emt 0:00:26]} Nc6 {[%emt 0:01:30]} 8. f4 {[%emt 0:01:57] [#] The position is equal.} Bd6 $146 {[%emt 0:04:36]} ({Predecessor:} 8... a6 9. a4 Qc7 10. Re1 Bd6 11. Nxd7 Qxd7 12. d3 O-O-O 13. Ne4 Nd5 {1-0 (68) Zukerfeld,A-Dorin,J Pehuajo 1978}) 9. Nxd7 {[%emt 0:17:23]} Qxd7 {[%emt 0:04:37]} 10. d3 {[%emt 0:00:48]} Be7 {[%emt 0:22:16]} 11. a3 {[%emt 0:06:09]} Nd4 {[%emt 0:03:41]} 12. Be3 {[%emt 0:09:04]} b5 {[%emt 0:06:00]} 13. Ba2 {[%emt 0:00:04]} Rd8 {[%emt 0:04:11]} 14. Kh1 {[%emt 0:01:53]} Qb7 {[%emt 0:45:44] Weighted Error Value: White=0.15 (very precise) /Black=0.07 (flawless)} 1/2-1/2

[Event "1st Serbian League 2022"]
[Site "Vrnjacka Banja"]
[Date "2022.09.22"]
[Round "3.10"]
[White "Ristic, Nenad"]
[Black "Ratkovic, Milovan"]
[Result "1/2-1/2"]
[ECO "B27"]
[WhiteElo "2267"]
[BlackElo "2411"]
[Annotator "TA"]
[PlyCount "123"]
[EventDate "2022.09.20"]
[EventType "team-tourn"]
[EventCountry "SRB"]
[SourceTitle "playchess.com"]
[Source "ChessBase"]
[SourceQuality "1"]
[TimeControl "40/5400+30:1800+30"]

{[%evp 14,123,17,11,17,18,18,16,16,21,29,19,22,29,35,29,18,24,25,26,18,33,21,0,0,-9,-8,-10,0,-14,-8,-8,-10,-10,-10,-26,-22,-40,-46,-76,-86,-86,-86,-86,-86,-86,-86,-86,-86,-90,-103,-117,-117,-120,-109,-395,-86,-86,-86,-86,-86,-86,-86,-86,-86,-86,0,0,0,-1023,0,0,0,-898,-880,-1026,0,0,0,0,0,0,0,0,0,0,0,0,0,-580,0,0,0,0,0,0,0,0,0,0,0,0,0,0,0,0,0,0,0,0,0,0]} 1. e4 {[%emt 0:00:03]} c5 {[%emt 0:00:36]} 2. Nf3 {[%emt 0:00:13]} g6 {[%emt 0:00:41]} 3. d4 {[%emt 0:01:11]} cxd4 {[%emt 0:00:26]} 4. Qxd4 {[%emt 0:00:17]} Nf6 {[%emt 0:00:21]} 5. Nc3 {[%emt 0:00:12]} Nc6 {[%emt 0:00:37]} 6. Qa4 {[%emt 0:00:04]} d6 {[%emt 0:00:27]} 7. e5 {[%emt 0:00:14]} dxe5 {[%emt 0:00:49]} 8. Nxe5 {[%emt 0:00:03] next Bc4 is good for White.} Bg7 {[%emt 0:00:41] B27: Sicilian: 2 Nf3, unusual Black 2nd moves.} 9. Bb5 {[%emt 0:00:42][%cal Bf1b5,Bb5c6,Bc6d5][%mdl 32]} O-O {[%emt 0:00:33]} 10. Nxc6 {[%emt 0:00:15]} bxc6 {[%emt 0:00:11]} 11. Bxc6 {[%emt 0:00:02]} Rb8 {[%emt 0:00:23]} 12. O-O {[%emt 0:00:25]} Qc7 {[%emt 0:00:52]} 13. Re1 {[%emt 0:02:24]} Rb6 {[%emt 0:01:37]} (13... Ng4 14. Bf4 e5 15. Nd5 $16) 14. Nd5 {[%emt 0:12:05]} Nxd5 {[%emt 0:00:44]} 15. Bxd5 {[%emt 0:00:03]} Bxb2 {[%emt 0:02:44]} 16. Bxb2 {[%emt 0:02:49]} Rxb2 {[%emt 0:00:07]} 17. Bb3 {[%emt 0:01:14] Strongly threatening Qd4.} Qc5 {[%emt 0:00:32] [#] Prevents Qd4.} 18. Qh4 $146 {[%emt 0:06:59]} ({Predecessor:} 18. Qe4 Be6 19. Bxe6 fxe6 20. Qxe6+ Rf7 21. Re2 Rxc2 22. Rb1 a5 23. h4 Kg7 24. Rf1 a4 25. Rxc2 Qxc2 26. Qe5+ Kg8 27. Qd5 Kg7 28. Qd4+ Kg8 29. a3 {½-½ (29) Trofimov,V (2400)-Tleptsok,R (2467) ICCF email 2014}) 18... Be6 {[%emt 0:04:34]} 19. h3 {[%emt 0:25:44]} Bxb3 {[%emt 0:05:21]} 20. cxb3 {[%emt 0:05:58]} Re8 {[%emt 0:11:42]} 21. Qf4 {[%emt 0:06:28]} e5 {[%emt 0:16:27]} 22. Qe3 {[%emt 0:07:35]} (22. Qf3 {seems wilder.} e4 23. Qf6 Rc2 24. Qf4) 22... Qxe3 {[%emt 0:08:39]} 23. Rxe3 $11 {[%emt 0:00:11][%mdl 4096] Endgame KRR-KRR} Rd8 {[%emt 0:00:53]} 24. a3 {[%emt 0:05:49]} Rdd2 {[%emt 0:02:33]} 25. Rf1 {[%emt 0:00:30]} f6 {[%emt 0:03:13]} 26. g4 {[%emt 0:00:28]} Kf7 {[%emt 0:02:24]} 27. g5 {[%emt 0:03:49]} fxg5 {[%emt 0:03:02]} 28. Rxe5 {[%emt 0:00:03]} Rxb3 {[%emt 0:01:16]} 29. Ra5 {[%emt 0:02:00]} Rxh3 {[%emt 0:09:26]} 30. Rxa7+ {[%emt 0:00:25]} Kf6 {[%emt 0:00:34] Threatens to win with ...g4.} 31. Rb1 {[%emt 0:02:39]} Rd6 $1 {[%emt 0:01:10] Prevents Rb6. White must now prevent ...h5.} 32. Kg2 {[%emt 0:01:11]} g4 {[%emt 0:02:09] ...h5 is the strong threat.} 33. a4 {[%emt 0:02:30]} h5 {[%emt 0:01:09] Hoping for ...Ra3.} 34. a5 $2 {[%emt 0:00:07][%mdl 8192]} (34. Rab7 $17) 34... Ra3 $2 {[%emt 0:01:21]} (34... Rd2 $19 {has better winning chances. And now ...Rf3 would win.} 35. Rb5 Rf3 36. Ra6+ Kg7) 35. Rb6 $17 {[%emt 0:05:19]} Rxb6 {[%emt 0:04:44]} 36. axb6 {[%emt 0:00:10] KR-KR} Rb3 {[%emt 0:00:09]} 37. Rb7 {[%emt 0:00:56]} Kg5 {[%emt 0:12:36]} 38. Rb8 {[%emt 0:00:04]} Kh4 {[%emt 0:02:03]} 39. b7 {[%emt 0:02:51]} g5 {[%emt 0:00:36]} ({Black should play} 39... Rb2 $17 40. Rg8 Rxb7 41. Rxg6 Rb2) 40. Kf1 $11 {[%emt 0:01:02]} Rb5 {[%emt 0:01:35]} 41. Ke2 $2 {[%emt 0:31:14][%mdl 8192]} (41. Kg2 $11) 41... Re5+ $2 {[%emt 0:13:54]} (41... Rb1 $1 $19 42. Ke3 Rb4) 42. Kf1 $1 {[%emt 0:00:00]} Rb5 {[%emt 0:02:28]} 43. Ke2 $2 {[%emt 0:05:42][%mdl 8192] [#]} (43. Kg2 $11) 43... Rb1 $1 $19 {[%emt 0:00:05]} 44. Kd2 {[%emt 0:00:00]} Rb6 $2 {[%emt 0:12:34]} (44... g3 45. fxg3+ Kxg3 46. Rg8 Rxb7 47. Rxg5+ Kh4 48. Rg1 $17) (44... Kh3 $19 45. Rh8 g3 46. fxg3 Rxb7 47. Rxh5+ Kg4) 45. Ke2 $1 $11 {[%emt 0:00:00]} Re6+ {[%emt 0:01:26]} 46. Kf1 $1 {[%emt 0:00:00] Intending Rd8 and mate.} Re7 {[%emt 0:00:52]} ({Don't play} 46... Rb6 47. Ke2 $17) 47. Kg2 {[%emt 0:00:00]} Rf7 {[%emt 0:00:19]} 48. Kg1 $1 {[%emt 0:00:00]} Rd7 {[%emt 0:01:28]} 49. Kf1 {[%emt 0:00:00]} Rd1+ $2 {[%emt 0:00:57][%mdl 8192]} (49... g3 $11 50. fxg3+ (50. Kg2 gxf2 51. Kxf2 g4 $19) 50... Kg4) 50. Ke2 $19 {[%emt 0:00:00]} Rb1 {[%emt 0:00:08]} 51. Kd2 $1 {[%emt 0:00:00] [#]} g3 $2 {[%emt 0:00:50]} ({Better is} 51... Kh3 $1 $19 {[%cal Rh3g2]} 52. Rh8 g3 53. fxg3 (53. Rxh5+ $2 Kg4 $19) 53... Rxb7 54. Rxh5+ Kg4) 52. fxg3+ $11 {[%emt 0:00:00] The position is equal.} Kxg3 {[%emt 0:00:18]} 53. Rg8 $1 {[%emt 0:00:00]} Rxb7 {[%emt 0:00:19] ( -> ...g4)} 54. Rxg5+ {[%emt 0:00:00]} Kh4 {[%emt 0:00:01]} 55. Rg1 {[%emt 0:00:00]} Re7 {[%emt 0:00:59]} 56. Re1 {[%emt 0:00:00]} Rf7 {[%emt 0:00:03] aiming for ...Kg3.} 57. Rh1+ {[%emt 0:00:00]} Kg4 {[%emt 0:00:26]} 58. Rg1+ {[%emt 0:00:00]} Kh4 {[%emt 0:00:06]} 59. Rh1+ $1 {[%emt 0:00:00]} Kg5 {[%emt 0:00:11]} 60. Rg1+ {[%emt 0:00:00]} Kh6 {[%emt 0:00:02]} 61. Ke2 {[%emt 0:00:00]} h4 {[%emt 0:00:16]} 62. Rf1 {[%emt 0:00:00] Weighted Error Value: White=0.37/Black=0.49} 1/2-1/2

[Event "1st Serbian League 2022"]
[Site "Vrnjacka Banja"]
[Date "2022.09.22"]
[Round "3.11"]
[White "Ratkovic, Miloje"]
[Black "Mijailovic, Zoran"]
[Result "1/2-1/2"]
[ECO "D05"]
[WhiteElo "2498"]
[BlackElo "2345"]
[Annotator "TA"]
[PlyCount "40"]
[EventDate "2022.09.20"]
[EventType "team-tourn"]
[EventCountry "SRB"]
[SourceTitle "playchess.com"]
[Source "ChessBase"]
[SourceQuality "1"]
[TimeControl "40/5400+30:1800+30"]

{[%evp 9,40,0,0,0,0,0,0,0,0,0,0,0,4,2,4,0,4,5,5,5,18,0,0,0,0,-13,0,1,6,4,7,-5,-6]} 1. d4 {[%emt 0:00:04]} Nf6 {[%emt 0:00:10]} 2. Nf3 {[%emt 0:00:09]} e6 {[%emt 0:00:19]} 3. e3 {[%emt 0:00:23]} c5 {[%emt 0:01:16]} 4. Bd3 {[%emt 0:02:41]} d5 {[%emt 0:00:28]} 5. O-O {[%emt 0:01:24]} c4 {[%emt 0:04:14] The position is equal.} 6. Be2 {[%emt 0:00:07] D05: Colle System with ...e6.} b5 {[%emt 0:00:19]} 7. b3 {[%emt 0:01:12]} Bb7 {[%emt 0:01:04]} 8. a4 {[%emt 0:07:06]} a6 {[%emt 0:01:05]} 9. c3 {[%emt 0:00:56]} Nc6 {[%emt 0:19:12]} 10. Nbd2 {[%emt 0:16:39]} Be7 {[%emt 0:09:22]} 11. Ba3 {[%emt 0:13:08]} O-O {[%emt 0:01:25]} 12. Qc2 {[%emt 0:05:35]} Bxa3 {[%emt 0:05:31]} 13. Rxa3 {[%emt 0:00:05] [#]} Qe7 $146 {[%emt 0:00:30]} ({Predecessor:} 13... Qd6 14. b4 Nd7 15. e4 e5 16. dxe5 Ndxe5 17. Nxe5 Nxe5 18. f4 Qb6+ 19. Rf2 dxe4 {0-1 (40) Arribas Lopez,A (2463)-Khamrakulov,I (2517) Sanxenxo 2012}) 14. Raa1 {[%emt 0:48:01]} Rfc8 {[%emt 0:03:23]} 15. axb5 {[%emt 0:00:00]} axb5 {[%emt 0:00:41]} 16. bxc4 {[%emt 0:00:00]} bxc4 {[%emt 0:00:53]} 17. e4 {[%emt 0:00:00]} Rxa1 {[%emt 0:07:41]} 18. Rxa1 {[%emt 0:00:00]} Ra8 {[%emt 0:00:24]} 19. Rxa8+ {[%emt 0:00:00]} Bxa8 {[%emt 0:00:07]} 20. e5 {[%emt 0:00:00]} Ne8 {[%emt 0:02:04] Not much happened in this game.  Weighted Error Value: White=0.04 (flawless) /Black=0.03 (flawless)} 1/2-1/2